bitfinex/quotes_SOLUSD_20241121
["timestamp","ask_amount","ask_price","bid_price","bid_amount"]
[1732188539095,27.74619073,241.85,241.77,43.776884]
[1732188539314,27.74619073,241.85,241.78,23.776884]
[1732188539509,27.74619073,241.85,241.79,20.0]
[1732188539712,23.61139073,241.83,241.8,23.776884]
[1732188540120,27.74659073,241.83,241.81,20.0]
[1732188542722,23.61139073,241.83,241.81,20.0]
[1732188542905,27.74629073,241.85,241.83,20.0]
[1732188546719,14.75365774,241.85,241.83,20.0]
[1732188547120,14.75365774,241.85,241.78,23.776884]
[1732188547309,14.75365774,241.85,241.79,20.0]
[1732188547504,14.75365774,241.85,241.81,20.0]
[1732188547710,14.75365774,241.85,241.83,20.0]
[1732188548616,14.75365774,241.85,241.77,6.3813962]
[1732188549017,14.75365774,241.85,241.79,20.0]
[1732188549327,14.75365774,241.85,241.8,23.776884]
[1732188549518,14.75365774,241.85,241.83,20.0]
[1732188549706,14.75365774,241.85,241.84,23.776884]
[1732188549915,14.75365774,241.85,241.84,43.776884]
[1732188550108,18.88835774,241.85,241.84,20.0]
[1732188550626,18.88835774,241.85,241.83,20.0]
[1732188550815,14.75365774,241.84,241.83,20.0]
[1732188551013,18.88855774,241.84,241.83,20.0]
[1732188551227,55.28705774,241.84,241.74,6.3813962]
[1732188551525,55.28705774,241.84,241.66,34.9399]
[1732188551526,14.75365774,241.75,241.66,24.6904]
[1732188551707,14.75365774,241.77,241.67,14.75365774]
[1732188551911,14.75365774,241.77,241.67,26.97463275]
[1732188552115,14.75365774,241.77,241.69,14.75365774]
[1732188552313,14.75365774,241.77,241.69,20.91838727]
[1732188552529,14.75365774,241.77,241.7,23.776884]
[1732188552742,18.88875774,241.83,241.75,14.75365774]
[1732188552916,4.1351,241.83,241.76,35.99785901]
[1732188553312,18.88855774,241.85,241.78,23.776884]
[1732188553829,18.88855774,241.85,241.79,20.0]
[1732188554018,18.88855774,241.85,241.81,20.0]
[1732188554636,18.88855774,241.85,241.78,23.776884]
[1732188554637,14.75365774,241.85,241.8,23.776884]
[1732188554831,14.75365774,241.85,241.83,20.0]
[1732188555017,14.75365774,241.85,241.84,43.776884]
[1732188555217,14.75365774,241.85,241.84,20.0]
[1732188555538,14.75365774,241.87,241.85,20.0]
[1732188556633,18.88815774,241.87,241.85,20.0]
[1732188557534,18.88815774,241.87,241.78,20.0]
[1732188557741,14.75365774,241.83,241.78,20.0]
[1732188558131,14.75365774,241.83,241.77,20.0]
[1732188558314,14.75365774,241.81,241.77,20.0]
[1732188558824,18.88905774,241.81,241.77,20.0]
[1732188559126,18.88885774,241.83,241.77,20.0]
[1732188559513,18.88885774,241.83,241.79,20.0]
[1732188559842,18.88885774,241.83,241.8,23.776884]
[1732188560053,18.88885774,241.83,241.81,20.0]
[1732188560917,14.75365774,241.83,241.82,43.776884]
[1732188561122,4.135,241.84,241.83,20.0]
[1732188563433,10.5406645,241.84,241.83,20.0]
[1732188563841,4.135,241.84,241.83,20.0]
[1732188564225,10.62100902,241.84,241.83,20.0]
[1732188565150,10.62100902,241.84,241.76,6.16472953]
[1732188565151,10.62100902,241.84,241.77,20.0]
[1732188565747,10.62100902,241.84,241.8,23.776884]
[1732188566139,10.62100902,241.84,241.81,20.0]
[1732188566924,14.75365774,241.83,241.81,20.0]
[1732188568231,18.88885774,241.83,241.81,20.0]
[1732188568428,25.37486676,241.83,241.81,20.0]
[1732188569933,6.48600902,241.82,241.81,43.776884]
[1732188570140,6.48600902,241.82,241.81,20.0]
[1732188570341,15.46008161,241.82,241.7,25.4598]
[1732188570534,14.75365774,241.78,241.7,31.62452953]
[1732188570738,21.24307663,241.78,241.71,6.16472953]
[1732188571048,6.48941889,241.79,241.71,20.91838727]
[1732188571233,14.75365774,241.8,241.73,14.75365774]
[1732188571234,6.48941889,241.8,241.73,14.75365774]
[1732188571434,6.48941889,241.81,241.74,6.16472953]
[1732188571750,25.37837663,241.82,241.74,6.16472953]
[1732188571946,25.37837663,241.82,241.75,43.776884]
[1732188572152,6.48941889,241.81,241.75,43.776884]
[1732188572757,10.62481889,241.81,241.75,43.776884]
[1732188573135,14.75365774,241.77,241.74,6.16472953]
[1732188573755,6.48941889,241.78,241.74,6.16472953]
[1732188574052,6.48941889,241.79,241.74,6.16472953]
[1732188574259,6.48941889,241.78,241.74,6.16472953]
[1732188574564,6.48941889,241.78,241.75,20.0]
[1732188574931,10.62541889,241.78,241.75,20.0]
[1732188575130,14.75365774,241.77,241.75,20.0]
[1732188575353,14.75365774,241.77,241.76,23.776884]
[1732188575556,21.24307663,241.77,241.76,20.0]
[1732188576132,14.75365774,241.77,241.69,20.0]
[1732188576332,14.75365774,241.74,241.69,20.0]
[1732188576552,14.75365774,241.74,241.7,6.16472953]
[1732188576853,10.62393952,241.77,241.71,20.0]
[1732188577063,6.48763952,241.77,241.72,6.16472953]
[1732188577253,14.75365774,241.77,241.75,20.0]
[1732188577452,21.24129726,241.77,241.75,20.0]
[1732188577648,14.75365774,241.77,241.75,20.0]
[1732188578548,10.62363952,241.78,241.77,20.0]
[1732188579570,4.136,241.78,241.77,20.0]
[1732188580238,10.62363952,241.78,241.77,20.0]
[1732188582150,10.62363952,241.78,241.73,20.0]
[1732188582357,10.62363952,241.78,241.72,6.16472953]
[1732188582358,14.75365774,241.75,241.72,6.16472953]
[1732188582560,14.75365774,241.75,241.67,20.80990322]
[1732188582867,14.75365774,241.75,241.68,6.16472953]
[1732188583658,4.1366,241.74,241.69,20.0]
[1732188584165,4.1366,241.74,241.71,20.0]
[1732188584354,4.1366,241.74,241.71,26.16472953]
[1732188585070,4.1361,241.77,241.75,20.0]
[1732188586469,4.1359,241.78,241.75,20.0]
[1732188586662,14.75365774,241.77,241.75,20.0]
[1732188587675,4.1363,241.76,241.7,23.776884]
[1732188588046,4.1363,241.76,241.71,20.0]
[1732188588347,4.1363,241.76,241.69,20.0]
[1732188588348,14.75365774,241.75,241.69,20.0]
[1732188589155,14.75365774,241.75,241.68,20.0]
[1732188589567,4.1366,241.74,241.7,20.0]
[1732188590151,14.75365774,241.71,241.62,14.75365774]
[1732188590354,51.9335,241.74,241.59,14.75365774]
[1732188590355,14.75365774,241.68,241.59,14.75365774]
[1732188590871,14.75365774,241.7,241.61,14.75365774]
[1732188591250,4.1375,241.69,241.61,14.75365774]
[1732188591563,4.1375,241.69,241.56,25.2219]
[1732188591564,14.75365774,241.68,241.59,14.75365774]
[1732188592057,14.75365774,241.68,241.6,20.0]
[1732188592256,14.75365774,241.68,241.61,23.776884]
[1732188592552,4.1378,241.67,241.64,20.0]
[1732188593159,14.75365774,241.7,241.65,23.776884]
[1732188593362,6.48763952,241.71,241.68,20.0]
[1732188593363,10.62483952,241.71,241.68,20.0]
[1732188593565,14.75365774,241.7,241.68,20.0]
[1732188593766,21.24129726,241.7,241.68,20.0]
[1732188593964,6.48763952,241.69,241.61,23.776884]
[1732188594167,14.75365774,241.67,241.62,20.0]
[1732188594974,4.138,241.66,241.62,20.0]
[1732188595876,14.75365774,241.64,241.51,14.75365774]
[1732188596179,14.75365774,241.63,241.55,14.75365774]
[1732188597064,14.75365774,241.63,241.56,20.0]
[1732188597269,18.89225774,241.63,241.56,20.0]
[1732188597677,18.89225774,241.63,241.56,25.47846771]
[1732188597678,14.75365774,241.63,241.56,25.47846771]
[1732188597882,16.83183952,241.69,241.58,20.0]
[1732188597883,14.75365774,241.65,241.58,20.0]
[1732188598078,14.75365774,241.65,241.6,20.0]
[1732188598956,18.89195774,241.65,241.6,20.0]
[1732188599554,14.75365774,241.66,241.6,20.0]
[1732188600072,14.75365774,241.66,241.61,20.0]
[1732188600659,14.75365774,241.66,241.62,23.776884]
[1732188600978,14.75365774,241.66,241.63,20.0]
[1732188601272,14.75365774,241.68,241.63,20.0]
[1732188601574,14.75365774,241.71,241.67,20.0]
[1732188601876,14.75365774,241.73,241.67,20.0]
[1732188602857,18.89045774,241.73,241.67,20.0]
[1732188607565,10.62423952,241.75,241.69,20.0]
[1732188607765,14.75365774,241.73,241.69,20.0]
[1732188608268,14.75365774,241.71,241.65,20.0]
[1732188609058,14.75365774,241.71,241.63,20.0]
[1732188609361,4.1371,241.71,241.65,20.0]
[1732188610493,6.48763952,241.72,241.66,23.776884]
[1732188610662,4.137,241.72,241.67,20.0]
[1732188611004,9.45127746,241.69,241.67,20.0]
[1732188611201,19.50257746,241.69,241.56,9.45127746]
[1732188611357,9.45127746,241.64,241.56,9.45127746]
[1732188611563,9.45127746,241.62,241.51,4.89758071]
[1732188611763,44.29274936,241.68,241.51,4.89758071]
[1732188611764,9.45127746,241.6,241.52,9.45127746]
[1732188611959,9.45127746,241.6,241.51,4.89758071]
[1732188612301,50.41232241,241.68,241.5,5.11312215]
[1732188612302,9.45127746,241.56,241.5,5.11312215]
[1732188612461,9.45127746,241.54,241.46,9.45127746]
[1732188612661,18.93146922,241.54,241.46,19.90449137]
[1732188612967,18.93146922,241.54,241.47,5.11312215]
[1732188613391,14.79136922,241.54,241.48,4.89758071]
[1732188613590,18.93086922,241.58,241.5,14.79136922]
[1732188613897,14.79136922,241.56,241.51,20.0]
[1732188614182,14.79136922,241.56,241.5,20.0]
[1732188614587,4.1399,241.55,241.5,20.0]
[1732188615394,4.1399,241.55,241.47,20.0]
[1732188615592,4.1399,241.55,241.5,23.776884]
[1732188615886,4.1399,241.55,241.51,20.0]
[1732188616701,14.79136922,241.54,241.51,20.0]
[1732188616994,14.79136922,241.52,241.42,19.68894993]
[1732188617890,4.1406,241.51,241.44,14.79136922]
[1732188618084,14.79136922,241.5,241.45,23.776884]
[1732188618289,4.1406,241.51,241.46,20.0]
[1732188619996,14.79136922,241.5,241.4,14.79136922]
[1732188620185,14.79136922,241.48,241.4,14.79136922]
[1732188621004,14.79136922,241.46,241.39,23.776884]
[1732188622289,25.55826922,241.46,241.38,19.90449137]
[1732188622488,14.79136922,241.42,241.32,14.79136922]
[1732188622694,14.79136922,241.4,241.32,14.79136922]
[1732188623012,14.79136922,241.42,241.34,14.79136922]
[1732188623199,14.79136922,241.44,241.36,14.79136922]
[1732188623400,4.1416,241.45,241.38,14.79136922]
[1732188623588,10.7669,241.46,241.4,14.79136922]
[1732188623785,14.9084,241.46,241.4,24.80207208]
[1732188623989,4.1415,241.46,241.41,25.11312215]
[1732188624183,31.3972,241.48,241.43,20.0]
[1732188624395,4.1412,241.48,241.45,20.0]
[1732188624793,4.1409,241.5,241.45,20.0]
[1732188625318,18.93226922,241.5,241.43,20.0]
[1732188625616,14.79136922,241.48,241.38,20.0]
[1732188625912,14.79136922,241.48,241.4,43.776884]
[1732188626689,4.1413,241.47,241.4,43.776884]
[1732188628192,14.79136922,241.44,241.36,20.0]
[1732188628398,14.79136922,241.38,241.31,14.79136922]
[1732188628590,14.79136922,241.4,241.33,14.79136922]
[1732188628791,10.7061,241.41,241.35,14.79136922]
[1732188629202,24.74016922,241.46,241.37,14.79136922]
[1732188629405,26.5028,241.49,241.41,14.79136922]
[1732188629406,14.79136922,241.48,241.41,14.79136922]
[1732188629688,9.9488,241.53,241.48,20.0]
[1732188629889,9.9488,241.53,241.51,20.0]
[1732188630113,14.0891,241.53,241.51,20.0]
[1732188630505,28.88046922,241.53,241.47,20.0]
[1732188630792,14.79136922,241.49,241.47,20.0]
[1732188631204,14.79136922,241.49,241.38,5.11312215]
[1732188631205,14.79136922,241.49,241.41,43.776884]
[1732188631409,24.4397,241.53,241.39,23.776884]
[1732188631410,14.79136922,241.46,241.39,23.776884]
[1732188631617,14.79136922,241.48,241.4,14.79136922]
[1732188631794,4.1413,241.47,241.41,23.776884]
[1732188632310,4.141,241.49,241.43,23.776884]
[1732188632700,4.141,241.49,241.44,20.0]
[1732188633926,9.9488,241.53,241.47,23.776884]
[1732188634124,9.9488,241.53,241.48,34.79136922]
[1732188634327,9.9488,241.53,241.5,20.0]
[1732188634505,14.0891,241.53,241.5,20.0]
[1732188635194,14.79136922,241.52,241.45,20.0]
[1732188635399,14.79136922,241.5,241.45,20.0]
[1732188635626,4.1406,241.51,241.45,20.0]
[1732188635915,14.0891,241.53,241.46,14.79136922]
[1732188636115,14.0891,241.53,241.47,20.0]
[1732188636814,31.3809,241.55,241.49,20.0]
[1732188638725,4.1396,241.57,241.52,14.79136922]
[1732188638912,4.1396,241.57,241.53,20.0]
[1732188639424,18.93096922,241.57,241.51,20.0]
[1732188639925,18.93136922,241.55,241.47,43.776884]
[1732188642717,18.93136922,241.55,241.49,43.776884]
[1732188643317,14.79136922,241.51,241.44,14.79136922]
[1732188643830,4.14,241.55,241.44,14.79136922]
[1732188643831,14.79136922,241.53,241.44,14.79136922]
[1732188644135,29.20916922,241.59,241.51,14.79136922]
[1732188644835,29.20916922,241.59,241.52,20.0]
[1732188646807,14.79136922,241.57,241.5,43.776884]
[1732188647033,29.20916922,241.59,241.52,43.776884]
[1732188650126,29.20916922,241.59,241.52,20.0]
[1732188650445,14.79136922,241.57,241.5,20.0]
[1732188651217,4.1397,241.56,241.5,20.0]
[1732188651837,4.1397,241.56,241.48,43.776884]
[1732188652023,14.79136922,241.55,241.48,43.276884]
[1732188653033,18.93136922,241.55,241.48,43.276884]
[1732188654315,6.48763952,241.57,241.49,14.79136922]
[1732188654634,18.93086922,241.57,241.52,20.0]
[1732188654833,25.41850874,241.57,241.52,20.0]
[1732188655140,25.41850874,241.57,241.48,20.0]
[1732188655438,14.79136922,241.55,241.48,20.0]
[1732188656237,4.1401,241.54,241.48,20.0]
[1732188656444,10.62753952,241.56,241.5,20.0]
[1732188656647,4.1399,241.56,241.5,20.0]
[1732188656944,21.27900874,241.55,241.5,20.0]
[1732188657119,14.79136922,241.51,241.37,0.98348864]
[1732188657442,14.79136922,241.46,241.37,14.79136922]
[1732188657822,14.79136922,241.44,241.35,14.79136922]
[1732188658436,14.79136922,241.44,241.36,23.776884]
[1732188658640,18.93316922,241.44,241.32,27.0717]
[1732188658848,14.79136922,241.42,241.34,14.79136922]
[1732188659643,21.27900874,241.42,241.34,14.79136922]
[1732188659941,18.93356922,241.42,241.34,14.79136922]
[1732188660145,18.93356922,241.42,241.35,20.0]
[1732188660317,31.79093952,241.43,241.36,14.79136922]
[1732188660523,31.79093952,241.43,241.37,43.776884]
[1732188661435,31.79093952,241.43,241.37,20.0]
[1732188661436,6.48763952,241.42,241.37,20.0]
[1732188661642,25.3033,241.43,241.37,20.0]
[1732188661643,6.48763952,241.41,241.37,20.0]
[1732188661835,6.48763952,241.42,241.37,20.0]
[1732188662221,6.48763952,241.41,241.37,20.0]
[1732188662540,6.48763952,241.4,241.37,20.0]
[1732188662843,6.48763952,241.4,241.34,20.0]
[1732188663625,6.48763952,241.4,241.33,14.79136922]
[1732188663626,6.48763952,241.37,241.32,20.0]
[1732188664143,6.48763952,241.37,241.24,5.11312215]
[1732188664350,6.48763952,241.31,241.25,14.79136922]
[1732188664640,6.48763952,241.31,241.23,14.79136922]
[1732188665235,6.48763952,241.29,241.23,14.79136922]
[1732188665443,30.2803,241.32,241.16,5.11312215]
[1732188665444,6.48763952,241.3,241.25,14.79136922]
[1732188665626,6.48763952,241.31,241.25,14.79136922]
[1732188665828,6.48763952,241.31,241.27,14.79136922]
[1732188666130,6.48763952,241.31,241.3,14.79136922]
[1732188666322,26.1363,241.32,241.31,20.0]
[1732188667948,6.48763952,241.36,241.33,20.0]
[1732188668141,35.88742514,241.39,241.35,34.79136922]
[1732188668142,6.48763952,241.39,241.35,34.79136922]
[1732188668721,6.48763952,241.4,241.35,34.79136922]
[1732188669142,6.48763952,241.4,241.32,23.776884]
[1732188669346,6.48763952,241.39,241.33,34.79136922]
[1732188669520,6.48763952,241.4,241.33,34.79136922]
[1732188670449,25.42150874,241.4,241.33,20.0]
[1732188670821,21.27900874,241.4,241.33,34.79136922]
[1732188671148,6.48763952,241.4,241.33,34.79136922]
[1732188671580,6.48763952,241.41,241.35,14.79136922]
[1732188671731,6.48763952,241.41,241.36,20.0]
[1732188674048,6.48763952,241.41,241.33,20.0]
[1732188674234,6.48763952,241.39,241.31,20.0]
[1732188674631,25.42150874,241.4,241.31,20.0]
[1732188674845,25.42150874,241.4,241.35,20.0]
[1732188674846,6.48763952,241.4,241.35,20.0]
[1732188675150,62.34480874,241.44,241.36,14.79136922]
[1732188675530,36.9239,241.44,241.38,14.79136922]
[1732188676423,6.48763952,241.47,241.41,23.776884]
[1732188676629,21.27900874,241.49,241.41,23.776884]
[1732188677148,21.27900874,241.51,241.45,23.776884]
[1732188677331,14.79136922,241.51,241.46,20.0]
[1732188678347,6.48763952,241.53,241.47,23.776884]
[1732188678556,6.48763952,241.56,241.51,23.776884]
[1732188678857,6.48763952,241.59,241.53,20.0]
[1732188679168,6.48763952,241.6,241.53,20.0]
[1732188679457,61.19400874,241.61,241.53,20.0]
[1732188679953,57.05500874,241.61,241.55,20.0]
[1732188680446,14.79136922,241.59,241.53,20.0]
[1732188681459,6.48763952,241.6,241.53,20.0]
[1732188681753,6.48763952,241.6,241.55,43.776884]
[1732188681934,42.26363952,241.61,241.55,43.776884]
[1732188682134,42.26363952,241.61,241.57,43.776884]
[1732188682135,35.776,241.61,241.57,43.776884]
[1732188682740,10.5016,241.61,241.57,43.776884]
[1732188682929,10.5016,241.61,241.58,14.79136922]
[1732188683132,10.5016,241.61,241.59,20.0]
[1732188683351,18.92966922,241.65,241.58,14.69298429]
[1732188683650,25.5853,241.66,241.6,14.79136922]
[1732188683956,25.5853,241.66,241.59,23.776884]
[1732188683957,10.8055,241.67,241.62,14.79136922]
[1732188684436,10.8055,241.67,241.61,23.776884]
[1732188684941,10.8055,241.67,241.63,23.776884]
[1732188685353,10.8055,241.67,241.64,20.0]
[1732188685544,26.0185,241.71,241.67,20.0]
[1732188686747,10.1791,241.73,241.67,20.0]
[1732188687049,29.10726922,241.73,241.67,20.0]
[1732188688445,21.27900874,241.78,241.71,20.0]
[1732188688644,37.2258,241.8,241.72,14.79136922]
[1732188688645,56.15286922,241.8,241.72,14.79136922]
[1732188689755,14.79136922,241.78,241.71,20.0]
[1732188690137,4.1361,241.77,241.71,20.0]
[1732188690535,18.92736922,241.78,241.71,20.0]
[1732188691266,56.15286922,241.8,241.71,20.0]
[1732188693036,52.01716922,241.8,241.73,20.0]
[1732188693445,37.2258,241.8,241.73,20.0]
[1732188694646,56.15286922,241.8,241.73,20.0]
[1732188694843,52.01716922,241.8,241.73,20.0]
[1732188696164,21.27900874,241.83,241.74,14.79136922]
[1732188696464,14.79136922,241.85,241.76,14.79136922]
[1732188696653,18.92616922,241.85,241.76,14.79136922]
[1732188696963,14.79136922,241.83,241.75,20.0]
[1732188699767,4.1346,241.86,241.79,20.0]
[1732188700147,14.79136922,241.85,241.79,20.0]
[1732188700350,14.79136922,241.85,241.77,20.0]
[1732188700756,18.92626922,241.85,241.77,20.0]
[1732188701147,18.92626922,241.85,241.72,14.79136922]
[1732188701148,14.79136922,241.81,241.72,14.79136922]
[1732188702252,4.1356,241.8,241.72,14.79136922]
[1732188702949,4.1356,241.8,241.73,20.0]
[1732188702950,14.79136922,241.79,241.73,20.0]
[1732188703351,4.1356,241.8,241.73,20.0]
[1732188703572,4.1353,241.82,241.74,14.79136922]
[1732188704248,4.1353,241.82,241.69,26.717]
[1732188704249,50.08766922,241.83,241.76,14.79136922]
[1732188704442,54.22276922,241.83,241.75,14.79136922]
[1732188705645,54.22276922,241.83,241.73,14.79136922]
[1732188705846,14.79136922,241.81,241.73,14.79136922]
[1732188706041,14.79136922,241.81,241.71,14.79136922]
[1732188706247,14.79136922,241.81,241.72,20.0]
[1732188706446,14.79136922,241.79,241.72,20.0]
[1732188706942,4.1359,241.78,241.72,20.0]
[1732188707168,14.79136922,241.77,241.69,14.79136922]
[1732188707377,14.79136922,241.75,241.67,14.79136922]
[1732188707555,14.79136922,241.73,241.65,14.79136922]
[1732188707757,14.79136922,241.73,241.63,30.93742215]
[1732188707758,14.79136922,241.71,241.63,40.61566922]
[1732188708574,14.79136922,241.73,241.65,14.79136922]
[1732188708749,14.79136922,241.75,241.67,14.79136922]
[1732188708946,18.92786922,241.75,241.67,14.79136922]
[1732188709387,14.79136922,241.73,241.65,14.79136922]
[1732188709669,14.79136922,241.73,241.66,20.0]
[1732188711279,18.92786922,241.75,241.67,14.79136922]
[1732188711974,14.79136922,241.77,241.69,14.79136922]
[1732188713475,18.92756922,241.77,241.69,14.79136922]
[1732188714183,14.79136922,241.75,241.68,20.0]
[1732188714490,14.79136922,241.75,241.67,14.79136922]
[1732188714664,14.79136922,241.73,241.65,14.79136922]
[1732188715279,4.137,241.72,241.65,14.79136922]
[1732188718358,4.137,241.72,241.57,30.38792215]
[1732188718359,14.79136922,241.77,241.67,14.79136922]
[1732188719163,14.79136922,241.75,241.67,14.79136922]
[1732188720290,14.79136922,241.73,241.65,14.79136922]
[1732188721077,4.1366,241.74,241.67,14.79136922]
[1732188723177,0.5,241.82,241.59,23.776884]
[1732188723178,4.1364,241.76,241.69,14.79136922]
[1732188723359,14.79136922,241.75,241.67,14.79136922]
[1732188724162,4.1366,241.74,241.67,14.79136922]
[1732188725086,4.1366,241.74,241.65,14.79136922]
[1732188726383,14.79136922,241.71,241.63,14.79136922]
[1732188726562,37.2709,241.73,241.61,14.79136922]
[1732188726563,14.79136922,241.69,241.61,14.79136922]
[1732188726954,14.79136922,241.67,241.59,14.79136922]
[1732188727384,14.79136922,241.67,241.57,14.79136922]
[1732188728085,14.79136922,241.59,241.52,5.11312215]
[1732188728292,14.79136922,241.55,241.48,14.79136922]
[1732188728476,14.79136922,241.53,241.46,14.79136922]
[1732188729360,4.1404,241.52,241.46,14.79136922]
[1732188729574,4.1404,241.52,241.44,14.79136922]
[1732188730379,14.79136922,241.55,241.48,14.79136922]
[1732188730691,18.93136922,241.55,241.48,14.79136922]
[1732188731094,44.13243952,241.57,241.53,14.79136922]
[1732188731266,6.48763952,241.6,241.53,14.79136922]
[1732188731467,4.1393,241.59,241.55,14.79136922]
[1732188731794,4.1393,241.59,241.48,4.89758071]
[1732188731795,25.41830874,241.59,241.51,14.79136922]
[1732188731968,14.79136922,241.55,241.46,19.90449137]
[1732188732168,14.79136922,241.55,241.48,14.79136922]
[1732188732880,14.79136922,241.55,241.46,14.79136922]
[1732188733280,14.79136922,241.55,241.48,14.79136922]
[1732188733571,4.1401,241.54,241.5,14.79136922]
[1732188734021,4.1401,241.54,241.48,14.79136922]
[1732188735077,14.79136922,241.53,241.46,14.79136922]
[1732188735382,4.1404,241.52,241.46,14.79136922]
[1732188735568,14.79136922,241.51,241.44,14.79136922]
[1732188735775,50.60196922,241.51,241.44,14.79136922]
[1732188736596,4.1407,241.5,241.44,14.79136922]
[1732188736791,4.1407,241.5,241.42,14.79136922]
[1732188737088,4.1407,241.5,241.48,14.79136922]
[1732188737689,4.1407,241.5,241.46,14.79136922]
[1732188739391,18.93206922,241.5,241.42,14.79136922]
[1732188739603,4.1407,241.5,241.44,14.79136922]
[1732188739971,4.1407,241.5,241.42,14.79136922]
[1732188740172,4.1407,241.5,241.44,14.79136922]
[1732188744207,14.79136922,241.48,241.37,23.776884]
[1732188744411,14.79136922,241.48,241.39,14.79136922]
[1732188744902,4.1413,241.47,241.39,14.79136922]
[1732188745079,4.1413,241.47,241.41,14.79136922]
[1732188745499,4.1413,241.47,241.37,23.776884]
[1732188745500,35.8106,241.51,241.45,14.79136922]
[1732188745801,35.8106,241.51,241.47,14.79136922]
[1732188745802,4.141,241.49,241.47,14.79136922]
[1732188746003,35.8106,241.51,241.39,4.89758071]
[1732188746198,4.1395,241.57,241.5,14.79136922]
[1732188753080,14.4884,241.57,241.5,14.79136922]
[1732188756703,14.4884,241.57,241.51,9.4650538]
[1732188757201,14.4884,241.57,241.53,9.4650538]
[1732188757797,14.4861,241.61,241.53,9.4650538]
[1732188758378,14.4861,241.61,241.55,9.4650538]
[1732188759586,10.3472,241.61,241.55,9.4650538]
[1732188760812,10.3472,241.61,241.57,9.4650538]
[1732188760982,4.1385,241.63,241.59,9.4650538]
[1732188761304,4.1385,241.63,241.58,9.4650538]
[1732188761480,10.3457,241.65,241.58,9.4650538]
[1732188762798,10.3457,241.65,241.6,14.77997236]
[1732188763280,10.3457,241.65,241.58,14.77997236]
[1732188763476,25.12567236,241.65,241.58,14.77997236]
[1732188763708,29.26387236,241.65,241.58,14.77997236]
[1732188764404,14.4839,241.65,241.58,14.77997236]
[1732188765812,14.77997236,241.63,241.54,14.77997236]
[1732188766017,14.77997236,241.61,241.45,25.3458]
[1732188766316,14.77997236,241.57,241.48,14.77997236]
[1732188767798,4.1397,241.56,241.48,14.77997236]
[1732188770805,4.1397,241.56,241.5,14.77997236]
[1732188771005,4.1397,241.56,241.45,25.3458]
[1732188771006,4.1397,241.56,241.52,14.77997236]
[1732188771213,4.1397,241.56,241.54,14.77997236]
[1732188771600,4.1397,241.56,241.5,14.77997236]
[1732188774988,18.91967236,241.56,241.48,14.77997236]
[1732188775189,14.77997236,241.56,241.48,14.77997236]
[1732188775389,14.4884,241.57,241.39,25.051]
[1732188775390,14.77997236,241.54,241.46,14.77997236]
[1732188776197,21.26761188,241.54,241.46,14.77997236]
[1732188776406,6.48763952,241.53,241.46,14.77997236]
[1732188776638,4.1404,241.52,241.46,14.77997236]
[1732188776988,14.4915,241.52,241.42,14.77997236]
[1732188777195,14.77997236,241.49,241.42,14.77997236]
[1732188777410,21.26761188,241.49,241.42,14.77997236]
[1732188777985,6.48763952,241.48,241.42,14.77997236]
[1732188778215,6.48763952,241.48,241.33,25.2399]
[1732188778216,6.48763952,241.48,241.4,14.77997236]
[1732188778525,21.26761188,241.47,241.38,14.77997236]
[1732188778685,14.77997236,241.45,241.38,14.77997236]
[1732188779293,14.77997236,241.41,241.34,14.77997236]
[1732188779616,21.26761188,241.41,241.32,14.77997236]
[1732188779919,6.48763952,241.4,241.32,14.77997236]
[1732188780116,21.26761188,241.39,241.32,14.77997236]
[1732188780316,6.48763952,241.39,241.32,14.77997236]
[1732188780812,6.48763952,241.37,241.32,14.77997236]
[1732188781393,10.63043952,241.38,241.33,20.0]
[1732188781806,10.63043952,241.38,241.34,14.77997236]
[1732188782197,4.1428,241.38,241.34,14.77997236]
[1732188782804,4.1426,241.4,241.36,14.77997236]
[1732188783996,4.1424,241.41,241.37,14.77997236]
[1732188784920,16.83563952,241.45,241.39,14.77997236]
[1732188785103,4.1419,241.44,241.41,14.77997236]
[1732188785496,10.62913952,241.46,241.41,14.77997236]
[1732188785800,4.1415,241.46,241.43,14.77997236]
[1732188787021,10.62873952,241.48,241.45,14.77997236]
[1732188787315,6.48763952,241.49,241.47,14.77997236]
[1732188787502,6.48763952,241.5,241.45,14.77997236]